bitfinex/quotes_SOLUSD_20250522
["timestamp","ask_amount","ask_price","bid_price","bid_amount"]
[1747955091934,5.60569538,178.39,178.33,18.64964886]
[1747955096746,19.61814867,178.41,178.33,18.64964886]
[1747955111144,19.61814867,178.41,178.34,0.28432314]
[1747955111661,19.61814867,178.41,178.34,1.85182314]
[1747955111967,14.01308169,178.41,178.34,7.45907085]
[1747955112169,5.60443871,178.43,178.36,0.28432314]
[1747955113487,14.01085962,178.44,178.36,0.28432314]
[1747955114568,28.24938036,178.44,178.35,44.64964886]
[1747955115579,33.85350499,178.44,178.35,44.64964886]
[1747955115973,19.61498425,178.44,178.35,44.64964886]
[1747955116154,19.61498425,178.44,178.36,0.14216157]
[1747955120670,33.85350499,178.44,178.35,44.64964886]
[1747955122274,14.23852074,178.43,178.35,44.64964886]
[1747955123796,19.6166349,178.42,178.35,44.64964886]
[1747955124278,14.23852074,178.4,178.33,26.0]
[1747955124969,14.23852074,178.41,178.33,26.0]
[1747955126384,19.61883407,178.4,178.33,26.0]
[1747955126565,19.61883407,178.4,178.34,26.0]
[1747955128598,14.01345291,178.4,178.34,26.0]
[1747955129911,28.25197365,178.4,178.32,26.0]
[1747955130123,14.23852074,178.37,178.27,35.18216157]
[1747955130327,47.61345291,178.4,178.31,26.0]
[1747955130489,14.23852074,178.37,178.31,26.0]
[1747955130688,19.62323389,178.36,178.31,26.0]
[1747955131118,33.86175463,178.36,178.31,26.0]
[1747955133417,19.62323389,178.36,178.31,26.0]
[1747955133618,33.86175463,178.36,178.31,26.0]
[1747955133808,14.23852074,178.35,178.29,26.0]
[1747955134716,33.86175463,178.36,178.29,26.0]
[1747955135014,14.23852074,178.35,178.29,26.0]
[1747955135220,14.01659564,178.36,178.29,26.0]
[1747955135221,14.23852074,178.34,178.29,26.0]
[1747955136927,14.23852074,178.34,178.25,1.5037]
[1747955137225,14.23852074,178.32,178.24,18.64964886]
[1747955137417,14.23852074,178.32,178.23,61.04]
[1747955137593,14.23852074,178.31,178.23,61.04]
[1747955137909,14.23852074,178.31,178.23,35.04]
[1747955138294,14.23852074,178.31,178.23,61.04]
[1747955139100,19.62983734,178.3,178.23,61.04]
[1747955140015,14.23852074,178.29,178.23,61.04]
[1747955140589,19.62983734,178.3,178.19,18.79181043]
[1747955140590,14.23852074,178.28,178.19,18.79181043]
[1747955141198,19.63314073,178.27,178.19,18.64964886]
[1747955143422,14.02367195,178.27,178.19,18.64964886]
[1747955144424,14.02367195,178.27,178.19,24.26159563]
[1747955144618,5.60915413,178.28,178.2,0.28432314]
[1747955145611,19.63093835,178.29,178.2,0.28432314]
[1747955146203,5.60883953,178.29,178.22,0.28432314]
[1747955147228,14.02011421,178.32,178.22,0.28432314]
[1747955147229,19.62801012,178.32,178.22,5.89516772]
[1747955147407,19.62801012,178.32,178.25,26.0]
[1747955150724,19.62801012,178.32,178.25,18.64964886]
[1747955150924,33.86653086,178.32,178.24,36.582]
[1747955152039,19.62801012,178.32,178.25,18.64964886]
[1747955152839,14.02011421,178.32,178.25,18.64964886]
[1747955153643,28.25863495,178.32,178.24,35.06]
[1747955153818,14.23852074,178.31,178.24,35.06]
[1747955155042,19.62983734,178.3,178.24,35.06]
[1747955155749,61.91098286,178.3,178.24,35.06]
[1747955155928,14.23852074,178.29,178.21,26.0]
[1747955156130,14.23852074,178.27,178.19,43.0716]
[1747955156434,14.23852074,178.27,178.19,62.6521]
[1747955156810,19.63424211,178.26,178.19,36.6521]
[1747955159250,14.23852074,178.28,178.2,18.64964886]
[1747955159251,5.60946878,178.27,178.2,18.64964886]
[1747955159554,5.60946878,178.27,178.21,0.14216157]
[1747955160129,5.60946878,178.27,178.23,0.14216157]
[1747955160441,5.60821042,178.31,178.23,26.28432314]
[1747955161558,19.62804875,178.32,178.23,26.28432314]
[1747955162226,19.62804875,178.32,178.25,0.14216157]
[1747955163355,14.02015284,178.32,178.25,0.14216157]
[1747955166353,5.60758145,178.33,178.25,5.89438213]
[1747955166654,5.60758145,178.33,178.27,0.28432314]
[1747955167354,5.60758145,178.33,178.29,26.0]
[1747955167738,14.0179371,178.35,178.29,26.0]
[1747955169361,14.0179371,178.35,178.3,26.0]
[1747955170837,28.25645784,178.35,178.29,26.0]
[1747955171371,33.86341046,178.35,178.29,26.0]
[1747955172242,14.23852074,178.34,178.27,26.0]
[1747955173561,19.62653507,178.33,178.27,26.0]
[1747955174176,19.62653507,178.33,178.28,18.64964886]
[1747955174477,5.60758145,178.33,178.28,18.64964886]
[1747955175680,5.60695262,178.35,178.28,18.64964886]
[1747955176071,19.62433417,178.35,178.28,18.64964886]
[1747955177581,5.60695262,178.35,178.28,18.64964886]
[1747955177882,5.60695262,178.35,178.29,0.14216157]
[1747955178046,5.60695262,178.35,178.29,0.28432314]
[1747955178250,5.60600964,178.38,178.32,18.933972]
[1747955180267,14.0150241,178.38,178.32,18.933972]
[1747955181399,14.0150241,178.38,178.32,18.64964886]
[1747955183383,14.0150241,178.38,178.33,0.14216157]
[1747955185389,14.0150241,178.38,178.32,18.64964886]
[1747955192322,5.60569538,178.39,178.36,18.64964886]
[1747955194400,14.01068847,178.44,178.36,18.64964886]
[1747955194607,19.6148131,178.44,178.36,18.64964886]
[1747955194905,19.6148131,178.44,178.36,53.68964886]
[1747955195718,19.6148131,178.44,178.39,26.0]
[1747955196409,36.34757358,178.49,178.4,18.64964886]
[1747955196410,5.60381059,178.45,178.4,18.64964886]
[1747955196608,19.61333706,178.45,178.4,18.64964886]
[1747955198419,14.00952647,178.45,178.4,18.64964886]
[1747955208653,5.60349658,178.46,178.4,18.64964886]
[1747955208654,47.62438367,178.48,178.4,18.64964886]
[1747955208831,14.23852074,178.47,178.4,18.64964886]
[1747955210353,14.23852074,178.46,178.4,18.64964886]
[1747955210554,14.23852074,178.46,178.39,26.0]
[1747955211751,19.61333706,178.45,178.39,26.0]
[1747955215738,33.8518578,178.45,178.39,26.0]
[1747955216459,14.23852074,178.44,178.39,26.0]
[1747955217870,19.61553549,178.43,178.39,26.0]
[1747955218881,14.01109678,178.43,178.39,26.0]
[1747955221751,5.60412463,178.44,178.41,26.0]
[1747955221953,5.60412463,178.44,178.42,18.64964886]
[1747955223373,5.60286866,178.48,178.42,18.64964886]
[1747955223573,19.61004033,178.48,178.42,18.64964886]
[1747955230374,19.61004033,178.48,178.43,0.28432314]
[1747955231076,19.61004033,178.48,178.42,18.64964886]
[1747955233888,5.60286866,178.48,178.43,0.28432314]
[1747955236564,19.61004033,178.48,178.43,0.28432314]
[1747955236763,19.61004033,178.48,178.42,18.64964886]
[1747955248279,19.61004033,178.48,178.43,0.28432314]
[1747955259315,19.61004033,178.48,178.42,18.64964886]
[1747955259489,9.10824234,178.46,178.4,26.0]
[1747955259819,9.10824234,178.47,178.4,26.0]
[1747955260818,19.61223803,178.46,178.4,26.0]
[1747955264445,19.61223803,178.46,178.41,18.64964886]
[1747955268647,14.00874145,178.46,178.41,18.64964886]
[1747955270645,19.61223803,178.46,178.41,18.64964886]
[1747955272535,5.60349658,178.46,178.45,18.64964886]
[1747955272710,5.60286866,178.48,178.45,18.64964886]
[1747955273742,5.60286866,178.48,178.44,26.0]
[1747955273743,19.61004033,178.48,178.44,26.0]
[1747955275444,19.61004033,178.48,178.45,18.64964886]
[1747955281893,19.61004033,178.48,178.44,26.0]
[1747955281894,19.61004033,178.48,178.41,0.14216157]
[1747955282094,19.61004033,178.48,178.41,18.64964886]
[1747955282095,28.71828267,178.48,178.41,18.64964886]
[1747955282414,28.71828267,178.48,178.41,44.64964886]
[1747955283613,19.61004033,178.48,178.41,44.64964886]
[1747955287411,19.61004033,178.48,178.42,0.28432314]
[1747955297857,5.60286866,178.48,178.42,0.28432314]
[1747955299130,5.60286866,178.48,178.45,18.64964886]
[1747955303136,19.61004033,178.48,178.42,0.28432314]
[1747955303337,19.61004033,178.48,178.42,26.28432314]
[1747955308623,19.61004033,178.48,178.42,0.28432314]
[1747955310347,19.61004033,178.48,178.39,18.933972]
[1747955310649,19.61004033,178.48,178.39,52.513972]
[1747955311044,19.61004033,178.48,178.39,18.933972]
[1747955311236,19.61004033,178.48,178.39,87.513972]
[1747955312139,56.73262601,178.48,178.39,18.933972]
[1747955315849,9.10824234,178.47,178.39,44.933972]
[1747955316360,19.61223803,178.46,178.39,44.933972]
[1747955318548,14.00874145,178.46,178.39,44.933972]
[1747955340365,5.60286866,178.48,178.39,44.933972]
[1747955340867,5.60286866,178.48,178.43,18.933972]
[1747955341500,19.61004033,178.48,178.43,18.933972]
[1747955348295,56.73262601,178.48,178.4,8.79631122]
[1747955348601,9.10824234,178.47,178.41,18.64964886]
[1747955349174,58.34112601,178.48,178.41,18.64964886]
[1747955349774,21.21854033,178.48,178.42,0.28432314]
[1747955350000,19.61004033,178.48,178.42,0.28432314]
[1747955350384,5.60286866,178.48,178.44,0.28432314]
[1747955351312,8.33333333,178.49,178.44,0.28432314]
[1747955351606,13.93599753,178.49,178.47,18.933972]
[1747955352005,8.33333333,178.49,178.47,18.933972]
[1747955352178,8.33333333,178.49,178.47,0.28432314]
[1747955352381,13.93598479,178.49,178.47,18.933972]
[1747955352583,13.93598479,178.49,178.43,1.6255]
[1747955352584,13.93598479,178.49,178.43,0.14216157]
[1747955352954,9.10824234,178.48,178.4,18.79181043]
[1747955353104,27.9423717,178.49,178.4,44.79181043]
[1747955353277,27.9423717,178.49,178.41,0.14216157]
[1747955353899,27.9423717,178.49,178.44,18.64964886]
[1747955355906,27.9423717,178.49,178.43,8.79498944]
[1747955356293,27.9423717,178.49,178.41,17.73214046]
[1747955356294,27.9423717,178.49,178.41,18.79181043]
[1747955360084,65.06338786,178.49,178.41,18.64964886]
[1747955360449,65.06338786,178.49,178.4,18.64964886]
[1747955360450,9.10824234,178.45,178.4,18.64964886]
[1747955360713,9.10824234,178.46,178.4,18.64964886]
[1747955361106,9.10824234,178.45,178.4,18.64964886]
[1747955361290,9.10824234,178.42,178.39,8.79498944]
[1747955361489,14.7136235,178.4,178.39,8.79498944]
[1747955362119,28.72707641,178.4,178.36,27.4446383]
[1747955362839,28.72707641,178.4,178.34,18.79181043]
[1747955363905,19.61883407,178.4,178.34,18.79181043]
[1747955364103,19.61883407,178.4,178.35,0.28432314]
[1747955364104,5.60538116,178.4,178.35,0.28432314]
[1747955364312,5.60475283,178.42,178.39,0.28432314]
[1747955365404,19.61333706,178.45,178.39,0.28432314]
[1747955366501,5.60381059,178.45,178.39,0.28432314]
[1747955366726,5.60381059,178.45,178.41,0.14216157]
[1747955367220,5.60381059,178.45,178.42,18.64964886]
[1747955367410,14.00937882,178.46,178.42,18.64964886]
[1747955367905,14.00937882,178.46,178.4,18.64964886]
[1747955368109,14.00937882,178.46,178.41,0.14216157]
[1747955369820,5.60286866,178.48,178.41,0.28432314]
[1747955370324,19.61004033,178.48,178.41,0.28432314]
[1747955370624,19.61004033,178.48,178.41,0.14216157]
[1747955371126,33.84559841,178.48,178.41,0.14216157]
[1747955371423,33.84559841,178.48,178.4,18.64964886]
[1747955371424,14.23555808,178.47,178.4,18.64964886]
[1747955372322,19.61004033,178.48,178.4,18.64964886]
[1747955372521,19.61004033,178.48,178.41,0.14216157]
[1747955373111,19.61004033,178.48,178.41,0.28432314]
[1747955373314,19.61004033,178.48,178.41,0.14216157]
[1747955374518,19.61004033,178.48,178.41,0.28432314]
[1747955379012,19.61004033,178.48,178.4,18.64964886]
[1747955379013,33.84559841,178.48,178.4,18.64964886]
[1747955381157,19.61004033,178.48,178.4,18.64964886]
[1747955381359,19.61004033,178.48,178.41,0.28432314]
[1747955388257,45.61004033,178.48,178.39,18.933972]
[1747955388757,45.61004033,178.48,178.39,24.53964025]
[1747955389638,87.85994175,178.48,178.39,0.28432314]
[1747955389831,14.23555808,178.46,178.38,18.64964886]
[1747955390035,14.23555808,178.46,178.37,18.79181043]
[1747955390227,14.23555808,178.46,178.38,0.14216157]
[1747955390535,19.61333706,178.45,178.37,18.79181043]
[1747955390856,19.61333706,178.45,178.38,0.14216157]
[1747955391361,19.61333706,178.45,178.37,18.79181043]
[1747955391525,19.61333706,178.45,178.38,0.14216157]
[1747955395171,14.23555808,178.47,178.38,0.14216157]
[1747955396464,47.62438367,178.48,178.37,18.64964886]
[1747955396465,14.23555808,178.45,178.37,18.64964886]
[1747955397468,19.61443621,178.44,178.37,18.64964886]
[1747955401668,14.01031158,178.44,178.37,18.64964886]
[1747955403668,33.85219298,178.42,178.34,18.933972]
[1747955406150,19.6166349,178.42,178.34,18.933972]
[1747955406476,33.85219298,178.42,178.34,18.933972]
[1747955407471,14.23555808,178.4,178.34,18.64964886]
[1747955407849,19.61883407,178.4,178.34,18.64964886]
[1747955412791,14.01345291,178.4,178.34,18.64964886]
[1747955415089,14.01345291,178.4,178.35,0.14216157]
[1747955417097,14.01345291,178.4,178.34,18.64964886]
[1747955420404,5.60506698,178.41,178.37,0.14216157]
[1747955420699,14.01171945,178.43,178.37,0.14216157]
[1747955421078,5.60412463,178.44,178.39,0.14216157]
[1747955421290,5.60412463,178.44,178.39,0.28432314]
[1747955422390,14.0093707,178.46,178.39,0.28432314]
[1747955424015,5.60286866,178.48,178.4,18.64964886]
[1747955424177,5.60286866,178.48,178.41,0.14216157]
[1747955424378,5.60286866,178.48,178.41,0.28432314]
[1747955424608,5.60286866,178.48,178.43,0.14216157]
[1747955429914,8.33333333,178.49,178.46,18.64964886]
[1747955430110,8.33333333,178.49,178.48,44.933972]
[1747955430688,8.33333333,178.49,178.48,18.79181043]
[1747955430889,13.93588809,178.49,178.48,18.64964886]
[1747955431100,13.93588809,178.49,178.47,18.64964886]
[1747955432525,13.93588809,178.49,178.46,61.2]
[1747955432526,13.93588809,178.49,178.46,26.0]
[1747955435023,27.942275,178.49,178.45,18.64964886]
[1747955435731,13.93588809,178.49,178.45,18.64964886]
[1747955439537,13.93588809,178.49,178.44,18.933972]
[1747955440210,27.942275,178.49,178.44,18.933972]
[1747955442346,27.942275,178.49,178.44,18.64964886]
[1747955444537,13.93588809,178.49,178.44,18.64964886]
[1747955444719,13.93588809,178.49,178.45,0.28432314]
[1747955446236,13.93588809,178.49,178.44,18.64964886]
[1747955451044,13.93588809,178.49,178.45,0.28432314]
[1747955451259,13.93588809,178.49,178.47,26.0]
[1747955454452,13.93588809,178.49,178.43,18.933972]
[1747955454624,13.93588809,178.49,178.47,18.64964886]
[1747955462341,8.33333333,178.49,178.47,18.64964886]
[1747955462548,8.33333333,178.49,178.48,0.28432314]
[1747955465609,42.22613554,178.64,178.53,0.28432314]
[1747955465871,19.5935733,178.63,178.56,26.0]
[1747955466339,33.82913138,178.63,178.56,26.0]
[1747955466661,14.23555808,178.62,178.54,18.64964886]
[1747955466962,14.23555808,178.62,178.5,26.0]
[1747955466963,14.23555808,178.57,178.5,26.0]
[1747955467143,14.23555808,178.55,178.49,18.64964886]
[1747955467540,14.23555808,178.56,178.49,18.64964886]
[1747955467751,19.60235228,178.55,178.49,18.64964886]
[1747955472742,5.60067208,178.55,178.5,0.28432314]
[1747955472939,5.6000448,178.57,178.54,0.28432314]
[1747955473158,13.99747932,178.61,178.57,18.64964886]
[1747955474740,13.99747932,178.61,178.54,0.28432314]
[1747955474972,28.2330374,178.61,178.55,18.64964886]
[1747955475349,28.2330374,178.61,178.54,26.0]
[1747955476445,33.83182806,178.61,178.54,26.0]
[1747955478848,14.23555808,178.6,178.54,26.0]
[1747955480285,14.23555808,178.59,178.53,18.64964886]
[1747955480447,14.23555808,178.58,178.51,35.28]
[1747955480653,14.23555808,178.58,178.52,18.64964886]
[1747955480855,14.23555808,178.57,178.51,18.64964886]
[1747955482761,19.60125447,178.56,178.51,18.64964886]
[1747955489197,19.60125447,178.56,178.5,0.28432314]
[1747955491098,19.60125447,178.56,178.49,18.64964886]
[1747955492712,14.23555808,178.53,178.48,26.0]
[1747955492881,14.23555808,178.53,178.46,18.933972]
[1747955493085,14.23555808,178.53,178.46,44.933972]
[1747955494002,5.60161326,178.52,178.46,44.933972]
[1747955499005,19.60492932,178.53,178.46,44.933972]
[1747955500693,19.60492932,178.53,178.47,0.14216157]
[1747955502308,5.59879066,178.61,178.54,18.64964886]
[1747955502906,14.23555808,178.6,178.54,18.64964886]
[1747955503147,14.23555808,178.59,178.53,26.0]
[1747955503488,14.23555808,178.6,178.53,26.0]
[1747955503688,14.23555808,178.6,178.54,18.64964886]
[1747955503893,33.83132539,178.61,178.54,18.64964886]
[1747955504192,14.23555808,178.6,178.54,18.64964886]
[1747955505313,19.59796181,178.59,178.54,18.64964886]
[1747955507716,13.99854415,178.59,178.54,18.64964886]
[1747955508928,5.59879066,178.61,178.58,18.64964886]
[1747955509817,33.8271364,178.65,178.58,18.64964886]
[1747955511909,19.59157832,178.65,178.58,18.64964886]
[1747955515122,19.59157832,178.65,178.59,0.28432314]
[1747955516614,5.59753708,178.65,178.62,18.64964886]
[1747955518026,19.58862308,178.68,178.62,18.64964886]
[1747955520124,13.99202582,178.68,178.62,18.64964886]
[1747955522826,19.58862308,178.68,178.62,18.64964886]
[1747955524527,33.82418116,178.68,178.61,26.0]
[1747955524731,14.23555808,178.66,178.58,1.5408]
[1747955524909,19.59137978,178.65,178.59,18.64964886]
[1747955527209,14.23555808,178.66,178.59,18.64964886]
[1747955529754,19.59137978,178.65,178.59,18.64964886]
[1747955534147,13.9938427,178.65,178.59,18.64964886]
[1747955538249,14.23555808,178.67,178.59,18.64964886]
[1747955539749,14.23555808,178.68,178.59,18.64964886]
[1747955540129,14.23555808,178.68,178.61,18.64964886]
[1747955540673,19.58918676,178.67,178.61,18.64964886]
[1747955540830,19.58918676,178.67,178.59,18.933972]
[1747955543655,13.99227626,178.67,178.59,18.933972]
[1747955544730,13.99227626,178.67,178.6,68.98]
[1747955545742,19.58918676,178.67,178.6,68.98]
[1747955547763,13.99227626,178.67,178.62,18.64964886]
[1747955548138,5.59659726,178.68,178.62,18.64964886]
[1747955549152,14.23555808,178.66,178.61,26.0]
[1747955549763,19.59137978,178.65,178.61,26.0]
[1747955550140,19.59137978,178.65,178.6,18.64964886]
[1747955551828,13.9938427,178.65,178.6,18.64964886]
[1747955553545,13.9938427,178.65,178.59,26.0]
[1747955554062,5.59753708,178.65,178.6,18.64964886]
[1747955554250,5.59753708,178.65,178.63,26.0]
[1747955554640,19.59137978,178.65,178.61,26.0]
[1747955554868,5.59753708,178.65,178.61,26.0]
[1747955555167,5.59753708,178.65,178.62,2.4]
[1747955555743,5.59753708,178.65,178.63,18.64964886]
[1747955556363,13.99183239,178.68,178.63,18.64964886]
[1747955557448,13.99183239,178.68,178.63,44.64964886]
[1747955559767,5.5959709,178.7,178.63,44.64964886]
[1747955559986,19.58589815,178.7,178.63,44.64964886]
[1747955560186,19.58589815,178.7,178.65,18.64964886]
[1747955562776,20.23555808,178.71,178.65,18.64964886]
[1747955563868,6.0,178.71,178.65,18.64964886]
[1747955564174,14.23555808,178.7,178.65,18.64964886]
[1747955564382,14.23555808,178.67,178.62,26.0]
[1747955565777,14.23555808,178.68,178.62,26.0]
[1747955567889,14.23555808,178.67,178.62,26.0]
[1747955568051,14.23555808,178.68,178.62,26.0]
[1747955568489,14.23555808,178.66,178.61,18.64964886]
[1747955568991,14.23555808,178.67,178.61,18.64964886]
[1747955569778,6.0,178.71,178.61,18.64964886]
[1747955570095,14.23555808,178.68,178.61,18.64964886]
[1747955572068,14.23555808,178.68,178.62,0.5]
[1747955574977,14.23555808,178.68,178.63,18.64964886]
[1747955575162,14.23555808,178.7,178.63,18.64964886]
[1747955576463,14.23555808,178.69,178.63,18.64964886]
[1747955577471,14.23555808,178.69,178.62,0.5]
[1747955580575,14.23555808,178.7,178.63,18.64964886]
[1747955585383,14.23555808,178.69,178.62,0.14216157]
[1747955587090,14.23555808,178.7,178.62,0.14216157]
[1747955587781,9.08764859,178.7,178.63,2.4]
[1747955588174,9.08764859,178.7,178.62,0.14216157]
[1747955588897,10.66484859,178.72,178.62,0.14216157]
[1747955589273,4.00060335,178.76,178.69,18.64964886]
[1747955589476,4.00060335,178.76,178.7,0.14216157]
[1747955589779,10.72784859,178.8,178.7,0.14216157]
[1747955589976,9.08764859,178.79,178.7,0.14216157]
[1747955590777,1.6402,178.8,178.7,0.14216157]
[1747955590995,9.08764859,178.79,178.7,0.14216157]
[1747955591696,14.1862229,178.79,178.7,0.14216157]
[1747955592293,14.1862229,178.79,178.71,2.4]
[1747955592600,14.1862229,178.79,178.7,0.14216157]
[1747955592773,1.6402,178.8,178.7,0.28432314]
[1747955592774,15.8264229,178.8,178.7,0.28432314]
[1747955593392,61.36,178.85,178.73,18.64964886]
[1747955593596,14.1862229,178.82,178.73,18.64964886]
[1747955593892,14.1862229,178.81,178.73,18.64964886]
[1747955596799,61.36,178.85,178.74,0.28432314]
[1747955596977,14.1862229,178.82,178.74,0.28432314]
[1747955597301,14.1862229,178.83,178.74,2.68432314]
[1747955597506,14.1862229,178.82,178.74,2.68432314]
[1747955599908,14.1862229,178.82,178.75,18.64964886]
[1747955600205,14.1862229,178.82,178.74,2.4]
[1747955602980,14.1862229,178.82,178.74,18.64964886]
[1747955604799,19.57275471,178.82,178.74,18.64964886]
[1747955606411,13.98053908,178.82,178.74,18.64964886]
[1747955608018,5.59221563,178.82,178.77,26.0]
[1747955608384,5.59221563,178.82,178.78,18.64964886]
[1747955609211,19.57008116,178.85,178.78,18.64964886]
[1747955613523,5.5912776,178.85,178.79,0.14216157]
[1747955613888,5.5912776,178.85,178.8,44.64964886]
[1747955614096,5.59065242,178.87,178.8,44.64964886]
[1747955614408,5.59065242,178.87,178.81,0.28432314]
[1747955615896,19.56728349,178.87,178.81,0.28432314]
[1747955616530,13.97663107,178.87,178.81,0.28432314]
[1747955619819,5.59002739,178.89,178.83,26.0]
[1747955620399,5.59002739,178.89,178.83,18.64964886]
[1747955620792,19.56509586,178.89,178.83,18.64964886]
[1747955621001,5.59002739,178.89,178.84,0.14216157]
[1747955621490,19.56509586,178.89,178.83,18.64964886]
[1747955621692,33.75131876,178.89,178.82,26.0]
[1747955621896,19.56509586,178.89,178.82,26.0]
[1747955622116,19.56509586,178.89,178.83,18.64964886]
[1747955622501,19.56509586,178.89,178.83,26.0]
[1747955623426,13.97506847,178.89,178.84,18.64964886]
[1747955625235,13.97506847,178.89,178.83,26.0]
[1747955627146,13.97506847,178.89,178.84,18.64964886]
[1747955630318,5.58971492,178.9,178.84,18.64964886]
[1747955631934,13.9732501,178.92,178.84,18.64964886]
[1747955632932,13.9732501,178.92,178.85,0.14216157]
[1747955635036,13.9732501,178.92,178.85,0.28432314]
[1747955635652,5.58877773,178.93,178.85,0.28432314]
[1747955636325,19.55962891,178.94,178.87,18.79181043]
[1747955638550,13.97116351,178.94,178.87,18.79181043]
[1747955644380,23.03959094,178.94,178.87,18.64964886]
[1747955644542,9.06842743,178.9,178.83,18.64964886]
[1747955645083,9.06842743,178.9,178.83,26.0]
[1747955645282,9.06842743,178.89,178.82,35.26]
[1747955645583,9.06842743,178.89,178.83,18.64964886]
[1747955645810,14.17132413,178.89,178.83,18.64964886]
[1747955646074,19.56618962,178.88,178.83,18.64964886]
[1747955647977,47.51083496,178.91,178.83,18.64964886]
[1747955648153,14.17132413,178.9,178.83,18.64964886]
[1747955648555,14.17132413,178.9,178.82,18.64964886]
[1747955648760,61.68215909,178.91,178.82,18.64964886]
[1747955649062,33.73423285,178.91,178.83,18.64964886]
[1747955649470,19.56290872,178.91,178.84,0.14216157]
[1747955649979,19.56290872,178.91,178.85,18.64964886]
[1747955654781,19.56290872,178.91,178.86,26.0]
[1747955655785,42.1120897,178.95,178.86,26.0]
[1747955655786,61.67328007,178.94,178.86,26.0]
[1747955659891,61.67328007,178.94,178.86,26.5]
[1747955661880,61.67328007,178.94,178.86,26.0]
[1747955662308,14.17132413,178.93,178.86,26.0]
[1747955662664,19.56181533,178.92,178.86,26.0]
[1747955663319,61.67858994,178.92,178.86,26.0]
[1747955663481,14.17132413,178.91,178.83,18.64964886]
[1747955663674,14.17132413,178.9,178.83,18.64964886]
[1747955664089,14.17132413,178.9,178.83,44.64964886]
[1747955664290,14.17132413,178.91,178.83,44.64964886]
[1747955664482,61.67858994,178.92,178.83,44.64964886]
[1747955664906,61.67858994,178.92,178.84,2.4]
[1747955665382,19.56181533,178.92,178.84,2.4]
[1747955665584,19.56181533,178.92,178.84,0.14216157]
[1747955666923,13.97272524,178.92,178.84,0.14216157]
[1747955667499,13.97272524,178.92,178.87,18.64964886]
[1747955672018,23.03709195,178.92,178.86,18.64964886]
[1747955672432,19.56181533,178.92,178.86,18.64964886]
[1747955674526,13.97272524,178.92,178.86,18.64964886]
[1747955675727,19.56181533,178.92,178.86,18.64964886]
[1747955677930,13.97272524,178.92,178.86,18.64964886]
[1747955678135,13.97272524,178.92,178.82,35.26]
[1747955678136,9.06436671,178.88,178.8,8.7705687]
[1747955678314,9.06436671,178.87,178.81,18.64964886]
[1747955678514,9.06436671,178.88,178.81,18.64964886]
[1747955678939,9.06436671,178.89,178.81,18.64964886]
[1747955679934,19.56618962,178.88,178.83,18.64964886]
[1747955680639,28.63055633,178.88,178.83,18.64964886]
[1747955682627,19.56618962,178.88,178.83,18.64964886]
[1747955684240,28.63055633,178.88,178.83,18.64964886]
[1747955687730,19.56618962,178.88,178.83,18.64964886]
[1747955688046,13.97584973,178.88,178.83,18.64964886]
[1747955688223,5.59002739,178.89,178.83,18.64964886]
[1747955688426,5.59002739,178.89,178.84,0.14216157]
[1747955688842,19.56509586,178.89,178.83,18.64964886]
[1747955689438,56.57959952,178.89,178.83,18.64964886]
[1747955689945,9.06436671,178.88,178.83,18.64964886]
[1747955690242,19.56728349,178.87,178.82,0.5]
[1747955692439,19.56728349,178.87,178.83,18.64964886]
[1747955693545,13.97663107,178.87,178.83,18.64964886]
[1747955697236,5.59033989,178.88,178.83,18.64964886]
[1747955698434,9.06436671,178.89,178.83,18.64964886]
[1747955699857,19.56618962,178.88,178.83,18.64964886]
[1747955700563,28.63055633,178.88,178.81,0.14216157]
[1747955702255,19.56618962,178.88,178.81,0.14216157]
[1747955702757,19.56618962,178.88,178.83,18.64964886]
[1747955706768,13.97584973,178.88,178.83,18.64964886]
[1747955711762,5.5884654,178.94,178.87,18.64964886]
[1747955711948,14.65283211,178.94,178.87,18.64964886]
[1747955712149,9.06436671,178.92,178.84,0.14216157]
[1747955712450,9.06436671,178.93,178.84,0.14216157]
[1747955714062,19.56181533,178.92,178.84,0.14216157]
[1747955715060,28.62618204,178.92,178.84,0.14216157]
[1747955715264,28.62618204,178.92,178.83,44.64964886]
[1747955715437,9.06436671,178.9,178.83,18.64964886]
[1747955715645,9.06436671,178.88,178.83,18.64964886]
[1747955715844,9.06436671,178.89,178.83,18.64964886]
[1747955716066,9.06436671,178.88,178.83,18.64964886]
[1747955716246,19.56728349,178.87,178.83,18.64964886]
[1747955716455,19.56728349,178.87,178.82,0.5]
[1747955716456,28.6316502,178.87,178.82,0.5]
[1747955717251,28.6316502,178.87,178.82,18.64964886]
[1747955719360,19.56728349,178.87,178.82,18.64964886]
[1747955722456,33.73994331,178.87,178.82,18.64964886]
[1747955724149,19.56728349,178.87,178.82,18.64964886]
[1747955724991,19.56728349,178.87,178.81,18.79181043]
[1747955725657,19.56728349,178.87,178.81,19.29181043]
[1747955725857,13.97663107,178.87,178.81,19.29181043]